Cogmind - Beta 15 @@@ ROGUE MODE // 2025.08.21 @ 22:33:25 Player: KeKe Result: Smashed by cave-in Performance ------------- Evolutions (0) 0 Regions Visited (0) 0 Robots Destroyed (14) 70 Value Destroyed (73) 73 Prototype IDs (0) 0 Alien Tech Used (0) 0 Bonus (0) 0 TOTAL SCORE: 143 Bonus ------- None Cogmind --------- Core Integrity 0/250 Matter 110/300 Energy 100/100 System Corruption 23% Temperature Cool (0) Movement Core (50) Location -11/Scrapyard Parts ------- > --- POWER (1) -------- (None) > --- PROPULSION (2) --- (None) > --- UTILITY (2) ------ (None) > --- WEAPON (2) ------- (None) > --- INVENTORY (5) ---- Light Ion Engine Light Treads Light Treads Aluminum Leg Compact Wheel Peak State ------------ > --- POWER ------------ Ion Engine > --- PROPULSION ------- Light Treads Light Treads > --- UTILITY ---------- Improved Terrain Scanner Improved Terrain Scanner > --- WEAPON ----------- EM Pulse Gun Medium Laser > --- INVENTORY -------- Light Ion Engine Aluminum Leg Wheel Compact Wheel Small Laser [Rating: 11] Favorites ----------- Power Ion Engine Engine Ion Engine Propulsion Light Treads Treads Light Treads Leg Aluminum Leg Wheel Wheel Utility Improved Terrain Scanner Device Improved Terrain Scanner Storage Small Storage Unit Weapon EM Pulse Gun Energy Gun EM Pulse Gun Special Weapon Mining Laser Build | -11 ------- Run | Yrd Slots Evolved . | . Power . | . Propulsion . | . Utility . | . Weapon . | . Parts Attached 11 | 11 Power . | . Engine . | . Core . | . Reactor . | . Propulsion 5 | 5 Treads 2 | 2 Leg 1 | 1 Wheel 2 | 2 Hover . | . Flight . | . Utility 3 | 3 Device 3 | 3 Storage . | . Processor . | . Hackware . | . Protection . | . Artifact . | . Weapon 3 | 3 Energy Gun 2 | 2 Energy Cannon . | . Ballistic Gun . | . Ballistic Cannon . | . Launcher . | . Special Weapon 1 | 1 Impact Weapon . | . Slashing Weapon . | . Piercing Weapon . | . Special Melee Weapon . | . Unidentified Prototypes . | . Corrupted Parts 1 | 1 System Corruption 3 | 3 Parts Lost 5 | 5 Power 1 | 1 Propulsion 1 | 1 Utility 2 | 2 Weapon 1 | 1 Highest Loss Streak 4 | 4 To Critical Strikes . | . Average Backups 6 | 6 Power 1 | 1 Propulsion 4 | 4 Utility . | . Weapon . | . Tool/Special . | . Unused Backups 7 | 7 Power 2 | 2 Propulsion 3 | 3 Utility 1 | 1 Weapon 1 | 1 Tool/Special . | . Average Slot Usage (%) . | . Peak Build Rating 11 | 11 Average Rating 9 | 9 On Entrance 6 | 6 Naked Turns . | . Heaviest Build 15 | 15 Greatest Support 40 | 40 Greatest Overweight (x) 2 | 2 Average Overweight (x) . | . Largest Inventory Capacity 8 | 8 Average Capacity 7 | 7 Most Carried 7 | 7 Average Carried 6 | 6 Final Capacity 5 | 5 Final Carried 5 | 5 Class Distribution -------------------- None Dominant Class ---------------- None Resources | -11 ----------- Run | Yrd Matter Collected 311 | 311 Remotely . | . Salvage Created 305 | 305 Parts 26 | 26 Haulers Intercepted . | . Recyclers Shooed . | . Parts Field Recycled . | . Retrieved Matter . | . Parts Self-Destructed . | . Prevented . | . Kills | -11 ------- Run | Yrd Combat Hostiles Destroyed . | . Classes Destroyed 3 | 3 Worker 4 | 4 Tunneler 9 | 9 Recycler 1 | 1 Best Kill Streak 4 | 4 Combat Bots Only . | . Max Kills in Single Turn 2 | 2 Gunslinging . | . Exploded . | . Melee . | . Uniques/NPCs Destroyed . | . Combat | -11 -------- Run | Yrd Hostile Shots Fired . | . Missed . | . Hits . | . Damage Taken 425 | 425 Core 272 | 272 Absorbed by Shields . | . Core Remaining (%) . | . Volleys Fired 168 | 168 Largest 2 | 2 Hottest 100 | 100 Shots Fired 228 | 228 Gun 175 | 175 Cannon . | . Launcher . | . Special 53 | 53 Kinetic . | . Thermal 128 | 128 Explosive . | . Electromagnetic 100 | 100 Robot Hit Streak 11 | 11 Robot Miss Streak 2 | 2 Penetration Max . | . Secondary Targets . | . Shots Hit Robots 20 | 20 Core Hits 14 | 14 Critical Kills . | . Critical Parts Destroyed . | . Critical Strikes . | . Melee Attacks . | . Impact . | . Slashing . | . Piercing . | . Sneak Attacks . | . Combat Hostiles . | . Follow-up Attacks . | . Damage Inflicted 506 | 506 Guns 272 | 272 Cannons . | . Explosions 234 | 234 Melee . | . Ramming . | . Kinetic . | . Thermal 234 | 234 Explosive . | . Electromagnetic 272 | 272 Impact . | . Slashing . | . Piercing . | . Highest Corruption 23 | 23 Average Corruption 5 | 5 Corruption Purged . | . Corruption Blocked . | . Effects 7 | 7 Message Errors 2 | 2 Matter Fused 2 | 2 Heat Flow Errors 2 | 2 Data Loss (major) 1 | 1 Overload Shots . | . Overflow Damage 34 | 34 Projectiles . | . Explosions 34 | 34 Melee . | . Knockbacks . | . Impact . | . Kinetic . | . Secondary . | . Self-Inflicted Damage . | . Shots . | . Rammed . | . Targets Rammed . | . Kicked . | . Crushed . | . Highest Temperature 597 | 597 Average Temperature 235 | 235 Received Heat Transfer . | . Effects 67 | 67 Shutdowns 13 | 13 Energy Bleed 9 | 9 Interference 14 | 14 Matter Decay 5 | 5 Short Circuit 6 | 6 Damage (minor) 4 | 4 Damage (major) 14 | 14 Damage (core) 2 | 2 Siege Activations . | . Martial Activations . | . Shielding Activations . | . Robots Disrupted . | . Combat Hostiles . | . Robots Corrupted . | . Combat Hostiles . | . Parts Fried 1 | 1 Impact Corruptions . | . Robots Melted . | . Combat Hostiles . | . Parts Melted 2 | 2 Heat Transferred 300 | 300 Parts Sabotaged . | . Parts Stolen . | . Parts Stripped . | . Power Chain Reactions 5 | 5 Alert | -11 ------- Run | Yrd Maximum Alert Level . | . Low Security (%) 100 | 100 Level 1 . | . Level 2 . | . Level 3 . | . Level 4 . | . Level 5 . | . High Security . | . Max Security . | . Peak Influence 20 | 20 Initial . | . Average . | . Influence Increases 70 | 70 Destroy 0b10 Robot/NC 70 | 70 Influence Decreases 70 | 70 Time Decay 70 | 70 Squads Dispatched . | . Investigation . | . Extermination . | . Reinforcement . | . Assault . | . Garrison . | . Intercept . | . Searches Triggered . | . Construction Impeded . | . Haulers Reinforced . | . Active Scanning Responses . | . Cargo Convoy Interrupts . | . Stealth | -11 --------- Run | Yrd Distress Signals . | . Communications Jammed . | . Distress Signals . | . Times Spotted . | . Peak Tracking Total . | . Tactical Retreats . | . Traps | -11 ------- Run | Yrd Traps Triggered . | . Indirectly . | . Trap Hack Attempts . | . Triggered . | . Disarmed . | . Reprogrammed . | . Reused . | . Traps Extracted . | . Installed . | . Triggered . | . Machines | -11 ---------- Run | Yrd Machines Disabled . | . Max in Single Turn . | . Machines Repaired . | . Machines Dismantled . | . Machines Sabotaged . | . Overloaded Fab Kills . | . Hacking | -11 --------- Run | Yrd Machines Accessed . | . Terminals . | . Fabricators . | . Repair Stations . | . Recycling Units . | . Scanalyzers . | . Garrison Access . | . Total Hacks . | . Successful . | . Failed . | . Catastrophic . | . Database Lockouts . | . Manual . | . Terminals . | . Fabricators . | . Repair Stations . | . Recycling Units . | . Scanalyzers . | . Garrison Access . | . Terminal Hacks . | . Fabricator Hacks . | . Repair Station Hacks . | . Recycling Unit Hacks . | . Scanalyzer . | . Garrison Access Hacks . | . Unauthorized Hacks . | . Terminals . | . Fabricators . | . Repair Stations . | . Recycling Units . | . Scanalyzers . | . Garrison Access . | . Data Cores Recovered . | . Used . | . Hacking Detections . | . Full Trace Events . | . Feedback Events . | . Feedback Blocked . | . Robot Schematics Acquired . | . Robots Built . | . Authchips . | . Time . | . Total Robot Build Rating . | . Part Schematics Acquired . | . Parts Built . | . Authchips . | . Time . | . Total Part Build Rating . | . Parts Repaired . | . Time . | . Parts Recycled . | . Recycled Matter . | . Retrieved Matter . | . Retrieved Components . | . Parts Scanalyzed . | . Part Schematics Acquired . | . Parts Damaged . | . Bothacking | -11 ------------ Run | Yrd Used RIF Installer . | . Robots Hacked . | . Non-combat . | . Combat . | . Robot Hacks Applied . | . Relay Couplers Released . | . Fabnet Peak Effective % . | . Robots Rewired . | . Allies Hacked . | . Hacks Repelled . | . Allies | -11 -------- Run | Yrd Total Allies . | . Largest Group . | . Highest-Rated Group . | . Highest-Rated Ally . | . Total Orders . | . Ally Attacks . | . Total Damage . | . Kills . | . Allies Corrupted . | . Allies Melted . | . Intel | -11 ------- Run | Yrd Active Infowar (turns) 3667 | 3667 Terrain 3667 | 3667 Robot Analysis Total . | . Derelict Logs Recovered . | . Drone Launches . | . Drone Recoveries . | . Exploration | -11 ------------- Run | Yrd Turns Passed 4176 | 4176 Spaces Moved 145 | 145 Core 19 | 19 Treads 28 | 28 Legs 39 | 39 Wheels 59 | 59 Hover . | . Flight . | . Fastest Speed 80 | 80 Average Speed 115 | 115 Slowest Speed 160 | 160 Overloaded Moves . | . Propulsion Burnouts . | . Robots Hopped . | . Potential Cave-ins 12 | 12 Cave-ins Triggered 5 | 5 Exploration Rate (%) 7 | 7 Regions Visited . Branch Regions . Pre-discovered Areas . | . Known Exits Taken . | . Unknown Exits Taken . | . Scrap Searched . | . Spaces Dug 21 | 21 Terrain Destroyed 39 | 39 Melee . | . Projectile 23 | 23 AOE 16 | 16 Terrain Rammed . | . Walls Destroyed . | . Machines Disabled . | . Actions | -11 --------- Run | Yrd Total 3817 | 3817 Wait 3483 | 3483 Move 143 | 143 Hop . | . Pick Up 1 | 1 Fast Attach 4 | 4 Attach 1 | 1 Detach 1 | 1 Swap 9 | 9 Drop 5 | 5 Fire 168 | 168 Melee . | . Ram . | . Kick . | . Crush . | . Escape Stasis 2 | 2 Rewire . | . Trap . | . Miscellaneous . | . Route ------- -11/Scrapyard (discovered 1 exit: [*Mat]) History --------- Turn | Location | Event 11 | -11/Scrapyard | Discovered new exit (range 2) 3971 | -11/Scrapyard | Crushed by falling debris 4105 | -11/Scrapyard | Crushed by falling debris 4106 | -11/Scrapyard | System corruption reached 10% 4109 | -11/Scrapyard | Crushed by falling debris 4109 | -11/Scrapyard | Core integrity fell below 50% 4140 | -11/Scrapyard | Lost 4 parts (1p2u1w) 4165 | -11/Scrapyard | Crushed by falling debris 4178 | -11/Scrapyard | Crushed by falling debris 4178 | -11/Scrapyard | Smashed by cave-in Last Messages --------------- 04105_ The unstable cave ceiling collapses. 04105_ Crushed by falling debris. 04105_ Ion Engine destroyed. 04105_ System corrupted by crushing effect (+3). 04105_ Imp. Terrain Scanner destroyed. 04105_ System corrupted by crushing effect (+5). 04109_ The unstable cave ceiling collapses. 04109_ Crushed by falling debris. 04109_ Mining Laser destroyed. 04109_ System corrupted by crushing effect (+4). 04109_ Imp. Terrain Scanner destroyed. 04109_ System corrupted by crushing effect (+3). 04119_ System corrupted: Matter fused (-9). 04164_ System corrupted: Substantial component data lost. 04165_ The unstable cave ceiling collapses. 04165_ Crushed by falling debris. 04165_ Wheel destroyed. 04165_ System corrupted by crushing effect (+5). 04178_ The unstable cave ceiling collapses. 04178_ Crushed by falling debris. Map ----- +----------------------------------------------------+ | ??????????????????????????? | | ??????????????????????????? | | ??????????????????????????? | | ??????????????????????????? | | ??????????????????????????? | | ??????????????????????????? | | ??????????????????????????? | | ??????????????????????????? | | ??????????????????????????? | | ??????????????????????????? | | ??????????????????????????? | | ??????????????????????????# | | ????????????????????????### | | ???????????????????????## | | ?????????????????????### ## | | ??????????????????#### ##? | | ??????????????????## ###?? | | ##?#####?????????## ###???? | | ### # #####????## ##?????? | | # # # ###### ##??????? | | # ######### # ##???????? | | ###??????### ####????????? | | # #?????????###???????????? | | ###???????????????????????? | | ####??????????????????????? | | ##@#??????????????????????? | | ####??????????????????????? | | ??????????????????????????? | | ??????????????????????????? | | ??????????????????????????? | | ??????????????????????????? | | ??????????????????????????? | | ??????????????????????????? | | ??????????????????????????? | | ??????????????????????????? | | ??????????????????????????? | | ??????????????????????????? | | ??????????????????????????? | | ??????????????????????????? | | ??????????????????????????? | | ??????????????????????????? | | ??????????????????????????? | | ??????????????????????????? | | ??????????????????????????? | | ??????????????????????????? | | ??????????????????????????? | | ??????????????????????????? | | ??????????????????????????? | | ??????????????????????????? | | ??????????????????????????? | +----------------------------------------------------+ Best States ------------- Heat Dissipation 25 Energy Generation 10 Energy Capacity 250 Matter Stores 300 Matter Capacity 300 Sight Range 16 Terrain Scan Range 16 Terrain Scan Density 10 Evasion (%) 55 Recoil Reduction 2 Item Schematics ----------------- None Robot Schematics ------------------ None Fabricated ------------ Nothing Repaired ---------- Nothing Alien Tech Used ----------------- None Achievements -------------- None Challenges ------------ None Game ------ Seed RestorationLinearArchive Manual? 0 Play Time 00:19:16 Cumulative 114.0 hours Start 2025.08.21 @ 22:23:39 End 2025.08.21 @ 22:33:25 Sessions 0 Manual Loads 0 Difficulty Rogue Special Mode None Game No. 114 Rogue 114 Adventurer 0 Explorer 0 Win Type - Total 1 Types 1/0/0/0/0/0/0/0/0/0 Lore% 58 Gallery% 48 Achievement% 47 Wizard Run 0 Options --------- Layout 0 ASCII 0 Keyboard 0 Movement Numpad Keybinds 0 Fullscreen 2 Font 18/X11 Map View 76x50 Zoom Use 0% Tactical HUD 1 Map Filters NONE Filters NONE Steam 1 RUN: 9cdd991c-0c79-49ad-b536-ae82ed82b58f